[Event "US Masters 2024"]
[Site "Charlotte"]
[Date "2024.11.28"]
[Round "2.6"]
[White "Gedajlovic, Max"]
[Black "Antipov, Mikhail Al."]
[Result "1/2-1/2"]
[ECO "D35"]
[WhiteElo "2377"]
[BlackElo "2602"]
[Annotator "TA"]
[PlyCount "73"]
[EventDate "2024.09.23"]
[EventType "swiss"]
[EventCountry "USA"]
[SourceTitle "playchess.com"]
[Source "ChessBase"]
[SourceQuality "1"]
[TimeControl "5400+30"]

{[%evp 9,73,9,31,29,33,33,28,15,0,0,8,20,16,0,14,0,0,0,2,-24,7,0,16,15,10,0,27,12,56,0,0,0,148,152,173,178,156,144,141,166,162,162,150,149,162,161,168,161,254,244,242,245,380,362,367,323,291,319,309,260,292,0,0,0,0,0]} 1. d4 {[%emt 0:02:34]} Nf6 {[%emt 0:07:27]} 2. c4 {[%emt 0:00:10]} e6 {[%emt 0:00:03]} 3. Nc3 {[%emt 0:00:11]} d5 {[%emt 0:01:49]} 4. cxd5 {[%emt 0:00:52]} exd5 {[%emt 0:00:04]} 5. Bg5 {[%emt 0:00:14]} Be6 {[%emt 0:00:04]} 6. e3 {[%emt 0:01:21]} Nbd7 {[%emt 0:00:08]} 7. Bd3 {[%emt 0:00:51]} c6 {[%emt 0:00:28]} 8. Nf3 {[%emt 0:05:15] White has an edge.} h6 {[%emt 0:00:51]} 9. Bh4 {[%emt 0:00:29]} g5 {[%emt 0:02:48]} 10. Bg3 {[%emt 0:00:17]} Nh5 {[%emt 0:00:08]} 11. Be5 {[%emt 0:01:36]} Ng7 {[%emt 0:01:58]} 12. h3 {[%emt 0:07:35]} Nxe5 {[%emt 0:01:55]} 13. dxe5 {[%emt 0:01:17]} Qc7 {[%emt 0:05:13]} 14. a3 {[%emt 0:03:35]} Rd8 {[%emt 0:05:08]} 15. Rc1 {[%emt 0:11:03]} Be7 {[%emt 0:04:24]} 16. Qc2 {[%emt 0:01:59]} a6 {[%emt 0:03:28]} 17. Kf1 {[%emt 0:05:08]} Qb8 {[%emt 0:19:31]} 18. b4 {[%emt 0:10:26]} O-O {[%emt 0:07:01]} 19. Ne2 {[%emt 0:01:30]} (19. g4 $1 $14) 19... f6 $1 $11 {[%emt 0:14:26]} 20. h4 $36 {[%emt 0:07:24][%mdl 2048] White has some pressure.} g4 {[%emt 0:08:18] [#]} (20... fxe5 $11 21. Bh7+ Kh8 22. hxg5 Rxf3 (22... Bxg5 $2 23. Nxg5 Rd6 24. Nf3 $18) (22... hxg5 $2 23. Bf5+ $18) 23. gxf3 Bxg5) 21. Nf4 $1 $16 {[%emt 0:06:35]} f5 {[%emt 0:10:15]} (21... gxf3 $2 {perishes.} 22. Bh7+ Kh8 23. Ng6+ Kxh7 24. Nxf8+ Kg8 25. Nxe6 Nxe6 (25... fxg2+ 26. Kxg2 Nxe6 27. Qg6+ Ng7 28. exf6 $18) 26. Qg6+ (26. gxf3 $2 Qxe5 27. Qg6+ Ng7 $19) 26... Ng7 27. exf6 Bxf6 28. Qxf6) (21... fxe5 22. Bh7+) 22. Nxe6 {[%emt 0:05:46]} Nxe6 {[%emt 0:00:11]} 23. Bxf5 {[%emt 0:00:56]} gxf3 {[%emt 0:00:23]} 24. Bxe6+ {[%emt 0:00:10]} Kg7 {[%emt 0:00:03]} 25. Qc3 {[%emt 0:11:59]} fxg2+ {[%emt 0:01:48]} 26. Kxg2 {[%emt 0:00:02][%cal Bf1g2,Bg2f3,Bf3g4,Bg4h5][%mdl 32] [#] And now Rcg1 would win.} Kh8 {[%emt 0:00:06]} 27. Qd4 {[%emt 0:01:33]} Rde8 {[%emt 0:02:21]} 28. f4 {[%emt 0:03:22]} Bf6 {[%emt 0:00:24]} (28... Bd8 {keeps fighting.}) 29. Bg4 $18 {[%emt 0:03:51]} Rg8 {[%emt 0:01:39]} 30. Kf3 $1 {[%emt 0:00:40]} Rxe5 {[%emt 0:01:12]} (30... Bg7 $142 31. Bh5 Re7) 31. fxe5 {[%emt 0:01:04]} Bxe5 {[%emt 0:00:02]} 32. Qd3 {[%emt 0:01:25]} Rxg4 {[%emt 0:01:01]} 33. Kxg4 {[%emt 0:02:50]} Qg8+ {[%emt 0:00:24]} 34. Kh5 {[%emt 0:01:53][%cal Od3g6] Qg6! would kill now.} Qf7+ {[%emt 0:00:05]} 35. Qg6 $2 {[%emt 0:00:06]} (35. Kxh6 $18 Qg7+ 36. Kh5 Qf7+ 37. Kg5 Qf6+ 38. Kg4 Qg7+ 39. Kf3 (39. Kh5 Qf7+ 40. Kg5 Qf6+ 41. Kg4 Qg7+ 42. Kf3 Qg3+ 43. Ke2 Qg2+ 44. Ke1 Qxh1+ 45. Kd2 Qxh4 $18) 39... Qg3+ 40. Ke2 Qg2+ 41. Kd1 Qxh1+ 42. Kd2 Qh2+ 43. Qe2) 35... Qf3+ $11 {[%emt 0:00:04]} 36. Qg4 {[%emt 0:00:05]} Qf7+ {[%emt 0:00:04]} 37. Qg6 $1 {[%emt 0:00:50] Weighted Error Value: White=0.26 (precise) /Black=0.22 (precise) .  Missed win:     	White=1     	---        Mistake:       	White=1     	Black=3      Inaccurate:     	White=1     	Black=3      OK:         	White=9     	Black=8      Best:        	White=3     	Black=4      Strong:       	White=2     	Black=1} 1/2-1/2

[Event "US Masters 2024"]
[Site "Charlotte"]
[Date "2024.11.28"]
[Round "2.7"]
[White "Park, Evan"]
[Black "Jacobson, Brandon"]
[Result "1-0"]
[ECO "C11"]
[WhiteElo "2375"]
[BlackElo "2583"]
[Annotator "TA"]
[PlyCount "129"]
[EventDate "2024.09.23"]
[EventType "swiss"]
[EventCountry "USA"]
[SourceTitle "playchess.com"]
[Source "ChessBase"]
[SourceQuality "1"]
[TimeControl "5400+30"]

{[%evp 71,129,370,353,323,324,246,303,328,314,276,287,267,472,0,477,475,444,463,478,477,469,463,514,514,644,637,643,512,604,393,604,0,630,629,750,591,630,0,731,732,759,703,972,839,976,950,1201,1172,1222,1222,1166,1156,29972,29973,29972,29971,29981,29956,12795,7547]} 1. e4 {[%emt 0:00:03]} e6 {[%emt 0:14:33]} 2. d4 {[%emt 0:00:06]} d5 {[%emt 0:00:13]} 3. Nc3 {[%emt 0:00:17]} Nf6 {[%emt 0:00:20]} 4. e5 {[%emt 0:00:48]} Nfd7 {[%emt 0:00:07]} 5. f4 {[%emt 0:00:39]} c5 {[%emt 0:00:20]} 6. Nf3 {[%emt 0:00:11]} Nc6 {[%emt 0:00:08]} 7. Be3 {[%emt 0:00:24]} Be7 {[%emt 0:00:16]} 8. Qd2 {[%emt 0:04:07]} O-O {[%emt 0:00:14] 8...a6 is more fashionable.} 9. dxc5 {[%emt 0:01:07]} Qa5 {[%emt 0:00:50] C11: French: Classical System: 4 e5 and 4 Bg5 dxe4.} 10. a3 {[%emt 0:05:37]} a6 {[%emt 0:00:30]} 11. Bd3 {[%emt 0:01:30]} Nxc5 {[%emt 0:00:57]} 12. h4 $146 {[%emt 0:01:57]} ({Predecessor:} 12. O-O Nxd3 13. cxd3 f6 14. b4 Qd8 15. exf6 Bxf6 16. Bc5 Re8 17. Rac1 b6 18. Bf2 {½-½ Girel,J (2479)-Boyer,M (2432) FRA-ch U20 Agen 2024 (7)}) 12... f6 {[%emt 0:04:56]} 13. Bxc5 {[%emt 0:06:06]} Qxc5 {[%emt 0:05:27]} 14. O-O-O {[%emt 0:02:25]} b5 {[%emt 0:03:09]} 15. exf6 {[%emt 0:05:40]} Bxf6 {[%emt 0:07:59]} 16. Ng5 {[%emt 0:02:39]} h6 {[%emt 0:04:07]} 17. Qe2 {[%emt 0:10:56]} Qd6 {[%emt 0:11:23]} 18. Qh5 {[%emt 0:16:50]} Qxf4+ {[%emt 0:02:21]} 19. Kb1 {[%emt 0:00:03]} Ne5 {[%emt 0:02:11]} 20. Bh7+ {[%emt 0:04:26]} Kh8 {[%emt 0:00:07]} 21. Rhf1 {[%emt 0:01:21]} Bxg5 {[%emt 0:12:09]} 22. Rxf4 {[%emt 0:00:12]} Bxf4 {[%emt 0:00:02]} 23. Ne2 {[%emt 0:03:19]} Bh2 {[%emt 0:03:05]} 24. g3 {[%emt 0:01:59]} Nf3 {[%emt 0:07:18]} 25. Nf4 {[%emt 0:04:39]} Kxh7 {[%emt 0:05:54]} 26. Qxf3 {[%emt 0:00:28]} e5 {[%emt 0:00:04]} 27. Qxd5 {[%emt 0:01:18]} exf4 {[%emt 0:06:03]} 28. Qxa8 {[%emt 0:00:09]} fxg3 {[%emt 0:00:16]} 29. Re1 {[%emt 0:08:01]} h5 {[%emt 0:07:02]} 30. Re7 {[%emt 0:02:44]} Rf2 {[%emt 0:02:07]} 31. Qe4+ {[%emt 0:02:32]} Rf5 {[%emt 0:01:16]} 32. Qd4 {[%emt 0:00:28]} Rf1+ {[%emt 0:00:04]} 33. Ka2 {[%emt 0:00:08]} Rf7 {[%emt 0:00:08]} 34. Re5 {[%emt 0:03:58]} Bf5 {[%emt 0:00:33]} 35. Qd5 {[%emt 0:02:20]} Bg6 {[%emt 0:00:02]} 36. Rg5 $2 {[%emt 0:02:26]} (36. Re8 Rf4 37. Qg8+ Kh6 38. Qh8+ Bh7 39. Re6+ g6 40. Re7 (40. Rxa6 $18)) 36... Rf2 {[%emt 0:00:54]} 37. Qc6 {[%emt 0:01:56]} Rf6 {[%emt 0:00:37]} 38. Qd7 {[%emt 0:01:08]} Bf7+ {[%emt 0:00:16]} 39. b3 {[%emt 0:00:11]} Bg6 {[%emt 0:00:07]} 40. Qc7 {[%emt 0:02:58]} Rf2 {[%emt 0:01:47]} 41. Rc5 {[%emt 0:00:02]} Rf6 $2 {[%emt 0:00:35]} (41... Rf1 42. Qc6 Bg1) 42. Rd5 $2 {[%emt 0:01:18]} ({White has to play} 42. Qb8 $18 {Rc8 would now be deadly.} Bf5 43. Qe5) 42... Rf7 $2 {[%emt 0:00:24][%mdl 8192]} (42... Rf2 $11 {and Black stays safe.} 43. Rc5 Re2) 43. Qb8 $18 {[%emt 0:00:43]} Rf2 {[%emt 0:00:12]} 44. Rc5 {[%emt 0:00:30]} Rxc2+ {[%emt 0:00:54]} 45. Rxc2 {[%emt 0:00:11]} Bxc2 {[%emt 0:00:03]} 46. Qf4 {[%emt 0:00:17]} Bd1 {[%emt 0:00:55]} 47. Kb2 {[%emt 0:00:25]} Bg4 {[%emt 0:00:17]} 48. Kc3 {[%emt 0:00:21]} a5 {[%emt 0:00:07]} 49. Qe4+ {[%emt 0:02:20]} Kh8 {[%emt 0:00:22]} 50. Qe8+ {[%emt 0:00:18]} Kh7 {[%emt 0:00:01]} 51. Qe4+ {[%emt 0:00:04]} (51. Qxb5 g2 52. Qd3+ g6 $11) 51... Kh8 $1 {[%emt 0:00:04]} 52. Qe5 {[%emt 0:00:27]} Kh7 {[%emt 0:00:38]} 53. Kd3 {[%emt 0:00:41]} (53. Qxb5 g2 54. Qd3+ Kh8 (54... g6 55. Qd5 $11) 55. Qd8+ Kh7 56. Qd3+ Kh8 (56... g6 57. Qd5 $11) 57. Qd8+ Kh7 58. Qd3+ $11) 53... Bd1 {[%emt 0:00:28]} 54. Kc3 {[%emt 0:00:45]} (54. Qxb5 g2 55. Qf5+ Kh8 56. Qc8+ Kh7 57. Qf5+ Kh8 58. Qf8+ Kh7 59. Qf5+ $11) 54... Bg4 {[%emt 0:00:13]} 55. b4 {[%emt 0:00:18]} (55. Qxb5 g2 56. Qd3+ Kh8 (56... g6 57. Qe4 $11) 57. Qd8+ Kh7 58. Qd3+ Kh8 (58... g6 59. Qd5 $11) 59. Qd8+ Kh7 60. Qd3+ $11) 55... a4 {[%emt 0:01:12]} 56. Kd3 {[%emt 0:00:15]} (56. Qxb5 g2 57. Qd3+ Kh8 (57... g6 58. Qe3 $11) 58. Qd8+ Kh7 59. Qd3+ g6 $11) 56... Kh8 {[%emt 0:01:39]} 57. Ke4 {[%emt 0:00:27]} Kg8 {[%emt 0:00:29]} 58. Kd5 {[%emt 0:00:42]} (58. Qxb5 $2 g2 59. Qc4+ Kh8 $19) 58... Bd7 {[%emt 0:00:29]} 59. Kd6 {[%emt 0:00:23]} (59. Qxh5 g2 60. Qg5 g1=Q $19 (60... g1=B 61. Qd8+ Kh7 62. Qxd7 Kg6 63. Ke6 Be3 64. Qe8+ Kh6 65. Kf5)) 59... Bg4 {[%emt 0:00:32]} 60. Kc6 {[%emt 0:00:16]} (60. Qxb5 $2 {too greedy.} g2+ 61. Kc6 g1=Q $19 (61... g1=B 62. Qxa4 Bf2 63. Qb3+ Kh8 64. a4 $18)) 60... Kf7 {[%emt 0:00:24]} 61. Kxb5 {[%emt 0:02:11]} ({And not} 61. Qxb5 Bf3+ 62. Kd7 g2 63. Qf5+ Kg8 64. Qxf3 g1=Q $11 (64... g1=B 65. Ke8 Bd6 66. Qd5+ Kh7 67. Kf7 Be3 68. Qxd6 Bh6 69. Qf8 g6 70. Qg8#)) 61... g5 {[%emt 0:00:32]} 62. hxg5 {[%emt 0:00:00]} Bd7+ {[%emt 0:00:15]} 63. Ka5 {[%emt 0:00:00]} h4 {[%emt 0:00:22]} 64. Qf4+ {[%emt 0:00:00]} Kg6 {[%emt 0:00:45]} 65. Qxh4 {[%emt 0:00:00]} 1-0

[Event "US Masters 2024"]
[Site "Charlotte"]
[Date "2024.11.28"]
[Round "2.8"]
[White "De Silva, L M S T"]
[Black "Bruzon Batista, Lazaro"]
[Result "1/2-1/2"]
[ECO "B06"]
[WhiteElo "2370"]
[BlackElo "2578"]
[Annotator "TA"]
[PlyCount "24"]
[EventDate "2024.09.23"]
[EventType "swiss"]
[EventCountry "USA"]
[SourceTitle "playchess.com"]
[Source "ChessBase"]
[SourceQuality "1"]
[TimeControl "5400+30"]

{[%evp 14,24,45,6,17,22,36,35,37,41,39,37,36]} 1. e4 {[%emt 0:04:54]} c5 {[%emt 0:00:21]} 2. c3 {[%emt 0:00:14]} d5 {[%emt 0:00:06]} 3. exd5 {[%emt 0:00:13]} Qxd5 {[%emt 0:00:03]} 4. d4 {[%emt 0:00:08]} g6 {[%emt 0:00:03]} 5. Nf3 {[%emt 0:01:03]} Bg7 {[%emt 0:00:11]} 6. Na3 {[%emt 0:03:24]} cxd4 {[%emt 0:03:03]} 7. Nb5 {[%emt 0:02:48]} Na6 {[%emt 0:01:21][%cal Bb8a6,Ba6c7,Bc7b5][%mdl 32]} 8. Be3 {[%emt 0:04:06]} Nh6 {[%emt 0:12:48]} 9. Bxd4 {[%emt 0:05:55]} Bxd4 {[%emt 0:00:13]} 10. Qxd4 {[%emt 0:02:19] White is slightly better.} Qxd4 {[%emt 0:00:09]} 11. Nbxd4 {[%emt 0:00:21]} Nc7 {[%emt 0:01:46]} 12. Nb5 {[%emt 0:05:23]} Nxb5 {[%emt 0:09:33] White took control after the opening.   Weighted Error Value: White=0.14 (very precise) /Black=0.07 (flawless) .  OK:         	White=2     	Black=1} 1/2-1/2

[Event "US Masters 2024"]
[Site "Charlotte"]
[Date "2024.11.28"]
[Round "2.9"]
[White "Nyzhnyk, Illya"]
[Black "Stremavicius, Pijus"]
[Result "1-0"]
[ECO "A10"]
[WhiteElo "2576"]
[BlackElo "2346"]
[Annotator "TA"]
[PlyCount "123"]
[EventDate "2024.09.23"]
[EventType "swiss"]
[EventCountry "USA"]
[SourceTitle "playchess.com"]
[Source "ChessBase"]
[SourceQuality "1"]
[TimeControl "5400+30"]

{[%evp 39,123,133,142,162,149,145,157,141,186,194,200,185,196,135,172,179,181,176,204,179,183,181,183,191,182,142,133,133,136,125,153,159,164,162,216,217,231,221,201,210,284,237,296,289,258,258,293,290,251,274,299,258,293,242,338,269,291,306,286,301,268,311,230,303,483,544,564,150,140,140,594,470,462,145,145,145,5345,5183,3910,3780,5065,3552,29950,12775,5604,4631]} 1. Nf3 {[%emt 0:00:04]} e6 {[%emt 0:03:40]} 2. c4 {[%emt 0:00:10]} f5 {[%emt 0:00:58]} 3. g3 {[%emt 0:02:00]} Nf6 {[%emt 0:01:37]} 4. Bg2 {[%emt 0:00:07]} d5 {[%emt 0:00:07]} 5. O-O {[%emt 0:00:21]} Be7 {[%emt 0:00:51]} 6. b3 {[%emt 0:04:21]} O-O {[%emt 0:01:46]} 7. Bb2 {[%emt 0:00:05]} a5 {[%emt 0:00:03] A10: English Opening: Unusual Replies for Black.} 8. Nc3 {[%emt 0:05:09]} Ne4 $146 {[%emt 0:01:13]} ({Predecessor:} 8... d4 9. Nb5 c5 10. e3 dxe3 11. dxe3 Nc6 12. Ne5 Nxe5 13. Bxe5 Qxd1 14. Raxd1 a4 {½-½ Subelj,J (2498)-Xiong,J (2646) Titled Tuesday intern op 24th Sep Late blitz 2024 (5)}) 9. cxd5 {[%emt 0:07:35]} exd5 {[%emt 0:00:10]} 10. Rc1 {[%emt 0:00:09]} c6 {[%emt 0:02:12]} 11. d3 {[%emt 0:00:32]} Nxc3 {[%emt 0:00:05]} 12. Bxc3 {[%emt 0:00:12]} Bf6 {[%emt 0:01:53]} 13. Qd2 {[%emt 0:10:42]} d4 {[%emt 0:01:27]} 14. Bb2 {[%emt 0:01:23]} Na6 {[%emt 0:00:04]} 15. Rc4 {[%emt 0:11:09]} c5 {[%emt 0:06:52]} 16. Ba3 {[%emt 0:00:10]} Be7 {[%emt 0:00:03]} 17. e3 {[%emt 0:03:40]} b5 {[%emt 0:04:01]} 18. Rcc1 {[%emt 0:05:48]} dxe3 {[%emt 0:00:49]} 19. Qxe3 {[%emt 0:00:14]} f4 {[%emt 0:00:10]} 20. gxf4 {[%emt 0:00:10]} Bb7 {[%emt 0:03:46]} 21. d4 {[%emt 0:04:21]} b4 {[%emt 0:03:56]} 22. Bb2 $1 {[%emt 0:00:35]} Bf6 {[%emt 0:01:19]} 23. Rfd1 {[%emt 0:01:05]} Re8 {[%emt 0:10:54]} 24. Ne5 {[%emt 0:00:27]} Bxg2 {[%emt 0:00:04]} 25. Kxg2 {[%emt 0:00:05]} Qd5+ {[%emt 0:02:01]} 26. Qf3 {[%emt 0:00:11]} (26. f3 $18) 26... Qxf3+ {[%emt 0:00:35]} 27. Kxf3 {[%emt 0:00:06]} cxd4 {[%emt 0:00:23]} 28. Bxd4 {[%emt 0:01:16]} Rac8 {[%emt 0:00:05]} 29. Nc6 {[%emt 0:03:24]} Nb8 {[%emt 0:01:02]} 30. Bxf6 $1 {[%emt 0:00:38]} (30. Nxa5 $2 Rxc1 31. Rxc1 Bxd4 $17) 30... Nxc6 {[%emt 0:02:22]} 31. Bb2 {[%emt 0:03:07]} Ne7 {[%emt 0:00:29]} 32. Ke4 {[%emt 0:00:26]} g6 {[%emt 0:00:49]} 33. Rxc8 {[%emt 0:00:10]} Rxc8 {[%emt 0:00:04]} 34. Rc1 {[%emt 0:00:03]} Ra8 {[%emt 0:00:24]} 35. Rc7 {[%emt 0:00:52]} Nf5 {[%emt 0:00:04]} 36. Be5 {[%emt 0:00:04]} a4 {[%emt 0:00:27]} (36... Rd8 {was worth a try.} 37. Rc2 Rd1) 37. Rb7 $18 {[%emt 0:00:10]} axb3 {[%emt 0:00:04]} 38. axb3 {[%emt 0:00:04]} Ra2 {[%emt 0:00:03]} 39. Kd5 {[%emt 0:00:27]} (39. Rxb4 Rxf2 40. h4 Nxh4 $16) 39... Ra5+ {[%emt 0:00:05]} 40. Kc4 $1 {[%emt 0:01:54]} Ra2 {[%emt 0:00:06]} 41. Kxb4 {[%emt 0:00:09]} (41. Rxb4 Rxf2 42. h3 Rc2+ 43. Kd3 Rh2 $16) 41... Rxf2 {[%emt 0:00:04]} 42. Kc5 {[%emt 0:00:25]} Rxh2 {[%emt 0:00:29]} 43. b4 {[%emt 0:00:10]} Rc2+ {[%emt 0:17:53]} 44. Kd5 {[%emt 0:00:15]} h5 {[%emt 0:00:03]} 45. b5 {[%emt 0:02:23]} h4 {[%emt 0:00:03]} 46. Ke6 {[%emt 0:09:16]} Rc8 {[%emt 0:00:29]} 47. Ra7 {[%emt 0:00:12]} h3 {[%emt 0:16:41]} 48. Ra3 $1 {[%emt 0:00:07]} Re8+ {[%emt 0:00:04]} 49. Kf6 {[%emt 0:00:16]} Ng7 {[%emt 0:00:22]} 50. Rxh3 {[%emt 0:03:36]} Re6+ {[%emt 0:00:05]} 51. Kg5 {[%emt 0:00:03]} Rb6 {[%emt 0:00:21]} 52. Bxg7 {[%emt 0:01:59]} Kxg7 {[%emt 0:00:01]} 53. Rb3 {[%emt 0:00:30]} Kf7 54. Rb2 {[%emt 0:00:30]} Ke7 $2 {[%emt 0:01:00][%mdl 8192] [#]} (54... Kg7 $16 55. Rb1 Kf8) 55. Re2+ $1 $18 {[%emt 0:00:30]} Kf7 {[%emt 0:00:30] [#]} 56. Re5 $1 {[%emt 0:00:30]} Rd6 {[%emt 0:00:30]} 57. Rc5 {[%emt 0:00:30]} Rd1 $2 {[%emt 0:00:30][%mdl 8192]} (57... Rb6 $16 58. Rd5 Ke6 59. Re5+ Kd7) 58. Rc7+ $18 {[%emt 0:00:30]} Ke6 {[%emt 0:00:30]} 59. Rc6+ {[%emt 0:00:30]} ({Worse is} 59. Kxg6 Rg1+ 60. Kh5 Kf5 61. Rf7+ Ke6 $11) 59... Kf7 {[%emt 0:00:30]} 60. Rf6+ {[%emt 0:00:30]} (60. Rxg6 {leads to mate.} Rg1+ 61. Kf5 Rxg6 62. Ke5 Rb6 63. Kd5 Rxb5+ 64. Kc4 Ra5 65. Kb4 Rf5 66. Kc4 Rxf4+ 67. Kd3 Ke6 68. Ke3 Rb4 69. Ke2 Rd4 70. Kf3 Kf5 71. Ke3 Rd7 72. Kf3 Re7 73. Kg3 Re3+ 74. Kg2 Kg4 75. Kf2 Re4 76. Kg2 Rf4 77. Kh1 Kh3 78. Kg1 Kg3 79. Kh1 Rf1#) 60... Ke7 {[%emt 0:00:30]} 61. Kxg6 {[%emt 0:00:30]} Rg1+ {[%emt 0:00:30]} 62. Kf5 {[%emt 0:00:30]} 1-0

[Event "US Masters 2024"]
[Site "Charlotte"]
[Date "2024.11.28"]
[Round "2.10"]
[White "Lin, Bryan Enming"]
[Black "Burke, John M"]
[Result "0-1"]
[ECO "B90"]
[WhiteElo "2368"]
[BlackElo "2573"]
[Annotator "TA"]
[PlyCount "52"]
[EventDate "2024.09.23"]
[EventType "swiss"]
[EventCountry "USA"]
[SourceTitle "playchess.com"]
[Source "ChessBase"]
[SourceQuality "1"]
[TimeControl "5400+30"]

{[%evp 9,52,17,20,5,4,12,12,7,9,0,0,0,0,0,0,-3,0,0,0,-29,0,-90,-72,-114,-112,-138,-154,-148,-142,-134,-132,-203,-187,-189,-179,-206,-212,-237,-236,-534,-572,-752,-731,-29989,-29986]} 1. e4 {[%emt 0:00:14]} c5 {[%emt 0:00:06]} 2. Nf3 {[%emt 0:00:07]} d6 {[%emt 0:00:07]} 3. d4 {[%emt 0:00:07]} cxd4 {[%emt 0:00:03]} 4. Nxd4 {[%emt 0:00:08]} Nf6 {[%emt 0:00:05]} 5. Nc3 {[%emt 0:00:05]} a6 {[%emt 0:00:04]} 6. h4 {[%emt 0:00:41]} e5 {[%emt 0:00:08]} 7. Nb3 {[%emt 0:00:10]} Be7 {[%emt 0:00:31]} 8. Bg5 {[%emt 0:01:21] The position is equal.} Be6 {[%emt 0:00:56]} 9. Bxf6 {[%emt 0:00:28]} Bxf6 {[%emt 0:00:05]} 10. g3 {[%emt 0:00:13]} Be7 {[%emt 0:01:26]} 11. Qd2 {[%emt 0:02:04]} Nd7 {[%emt 0:00:36]} 12. O-O-O {[%emt 0:03:38]} Nf6 {[%emt 0:02:32]} 13. f4 {[%emt 0:04:15]} b5 {[%emt 0:02:09]} 14. Bg2 {[%emt 0:05:36]} Rc8 {[%emt 0:03:47]} 15. Qe3 {[%emt 0:11:29]} (15. Kb1 $1 $11 {keeps the balance.}) 15... Qc7 {[%emt 0:05:40]} 16. Rd2 {[%emt 0:01:55]} O-O $1 {[%emt 0:02:11]} 17. Rhd1 {[%emt 0:05:12]} b4 {[%emt 0:09:46]} 18. Nd5 {[%emt 0:01:18] [#]} Bxd5 {[%emt 0:08:11]} 19. exd5 {[%emt 0:02:03] [#]} a5 $1 {[%emt 0:00:11] Strongly threatening ...a4.} 20. fxe5 {[%emt 0:06:34]} (20. Kb1 $17 {was called for.}) 20... dxe5 $19 {[%emt 0:03:09]} (20... Ng4 21. Qe2 (21. exd6 Nxe3 22. dxc7 Nxd1 $15) 21... Nxe5 22. Nd4) 21. Qd3 {[%emt 0:04:10] Threatens to win with d6.} Rfd8 {[%emt 0:06:35]} 22. Kb1 {[%emt 0:07:21]} a4 {[%emt 0:00:35] aiming for ...e4.} 23. Nc1 {[%emt 0:00:15]} a3 {[%emt 0:01:18]} 24. b3 $2 {[%emt 0:06:00] [#]} (24. bxa3 {is a better defense.} bxa3 25. c4) 24... e4 $1 {[%emt 0:02:00][%mdl 512]} 25. d6 {[%emt 0:04:31]} (25. Bxe4 Qe5) 25... Rxd6 {[%emt 0:01:26]} 26. Qe3 {[%emt 0:00:34] [#]} Nd5 $1 {[%emt 0:00:20][%mdl 512] Weighted Error Value: White=0.78/Black=0.03 (flawless) .  Mistake:       	White=3     	---        Inaccurate:     	White=4     	Black=1      OK:         	White=7     	Black=10     Strong:       	---       	Black=2      Brilliant:      	---       	Black=1} 0-1

[Event "US Masters 2024"]
[Site "Charlotte"]
[Date "2024.11.28"]
[Round "2.11"]
[White "Samsonkin, Artiom"]
[Black "Matviishen, Viktor"]
[Result "0-1"]
[ECO "B53"]
[WhiteElo "2363"]
[BlackElo "2566"]
[Annotator "TA"]
[PlyCount "58"]
[EventDate "2024.09.23"]
[EventType "swiss"]
[EventCountry "USA"]
[SourceTitle "playchess.com"]
[Source "ChessBase"]
[SourceQuality "1"]
[TimeControl "5400+30"]

{[%evp 9,58,8,15,3,11,8,6,0,0,0,0,0,17,0,0,0,0,0,0,-18,-10,-23,-21,-21,0,-3,0,-35,-35,-35,-16,-30,-16,-21,-17,-12,-18,-22,-27,-39,0,-49,-61,-374,-387,-384,-381,-373,-374,-639,-631]} 1. e4 {[%emt 1:31:00]} c5 {[%emt 0:21:45]} 2. Nf3 {[%emt 0:00:00]} d6 {[%emt 0:00:08]} 3. d4 {[%emt 0:00:00]} cxd4 {[%emt 0:00:05]} 4. Qxd4 {[%emt 0:00:00]} Nc6 {[%emt 0:00:31]} 5. Qe3 {[%emt 0:00:00]} g6 {[%emt 0:00:28]} 6. Be2 {[%emt 0:00:00]} Bg7 {[%emt 0:00:08]} 7. O-O {[%emt 0:00:00]} Nf6 {[%emt 0:00:04]} 8. h3 {[%emt 0:00:00] The position is equal.} O-O {[%emt 0:00:23]} 9. Rd1 {[%emt 0:00:00]} Be6 {[%emt 0:01:14]} 10. Nc3 {[%emt 0:00:00]} Rc8 {[%emt 0:01:12]} 11. a3 {[%emt 0:00:00]} a6 {[%emt 0:03:36]} 12. Rb1 {[%emt 0:00:00]} Qc7 {[%emt 0:00:32]} 13. Qf4 {[%emt 0:00:00]} Ne5 {[%emt 0:14:46]} 14. Qh4 {[%emt 0:00:00]} Nxf3+ {[%emt 0:06:15]} 15. Bxf3 {[%emt 0:00:00]} b5 {[%emt 0:02:04]} 16. Be3 {[%emt 0:00:00]} Qb8 {[%emt 0:02:19]} 17. Be2 {[%emt 0:03:25]} Bc4 {[%emt 0:04:29]} 18. Bd3 {[%emt 0:02:13]} Rfe8 {[%emt 0:02:16]} 19. Bh6 {[%emt 0:00:31]} Bxh6 {[%emt 0:09:40]} 20. Qxh6 {[%emt 0:00:03]} Qb6 {[%emt 0:01:34]} 21. Re1 {[%emt 0:01:01]} a5 {[%emt 0:01:17][%cal Ba6a5,Ba5b4,Bb4b3][%mdl 32]} 22. Qd2 {[%emt 0:02:30]} b4 {[%emt 0:01:03]} 23. axb4 {[%emt 0:00:23]} axb4 {[%emt 0:01:49]} 24. Nd1 {[%emt 0:00:52]} b3 {[%emt 0:06:13]} 25. Ne3 {[%emt 0:00:29]} (25. c3 $1 $11) 25... bxc2 $15 {[%emt 0:01:01]} 26. Nxc4 $4 {[%emt 0:00:21][%mdl 8192] [#] This costs White the game.} ({White should play} 26. Bxc2 $15 Ba2 27. Rbd1) 26... cxb1=N $19 {[%emt 0:18:38]} (26... cxb1=Q 27. Nxb6 Qa2 28. e5 dxe5 29. Nxc8 Rxc8 30. Rxe5 $16) 27. Rxb1 {[%emt 0:00:40]} Qd4 {[%emt 0:00:00][%csl LRc4,LRe4]} 28. Qe2 {[%emt 0:00:24]} Nxe4 {[%emt 0:00:00]} 29. Rd1 $2 {[%emt 0:00:28] [#]} (29. Ne3 Nf6 30. Nc2) 29... Nxf2 $1 {[%emt 0:00:00] Weighted Error Value: White=0.45/Black=0.05 (flawless) .  Loses game:     	White=1     	---        Mistake:       	White=2     	---        Inaccurate:     	White=1     	Black=1      OK:         	White=6     	Black=14     Best:        	---       	Black=1      Brilliant:      	---       	Black=1} 0-1